Cogmind - Beta 12 --- EXPLORER MODE // 2024.01.12 @ 00:46:14 Player: tengu8890 Result: Self-destructed Performance ------------- Evolutions (5) 2500 Regions Visited (7) 1400 Robots Destroyed (46) 230 Value Destroyed (1435) 1435 Prototype IDs (2) 40 Alien Tech Used (0) 0 Bonus (517) 517 TOTAL SCORE: 6122 Bonus ------- High Alert Combat Kills 17 Entered DSFs 500 Cogmind --------- Core Integrity 830/1000 Matter 245/300 Energy 100/100 System Corruption 1% Temperature Cool (0) Movement Core (1400) Ox27 Location -5/Factory Parts ------- > --- POWER (5) -------- (None) > --- PROPULSION (4) --- (None) > --- UTILITY (4) ------ Improved Heat Sink Huge Storage Unit Targeting Computer Power Shielding > --- WEAPON (5) ------- (None) > --- INVENTORY (25) --- Medium Storage Unit Improved Heavy Armor Plating Peak State ------------ > --- POWER ------------ Light Ion Engine Heavy Ion Engine Light Nuclear Core Micro Nuclear Core > --- PROPULSION ------- Carbon-fiber Leg VSS Leg Improved Carbon-fiber Leg Improved Titanium Leg > --- UTILITY ---------- Huge Storage Unit Targeting Computer Core Shielding Hardened Medium Armor Plating > --- WEAPON ----------- Light Assault Rifle Light Cannon Assault Cannon Heavy Missile Launcher > --- INVENTORY -------- Light Ion Engine Aluminum Leg Aluminum Leg Improved Heat Sink Medium Storage Unit Power Shielding Light Armor Plating Improved Heavy Armor Plating Heavy Assault Rifle Heavy Missile Launcher [Rating: 42] Favorites ----------- Power Heavy Ion Engine Engine Heavy Ion Engine Power Core Light Nuclear Core Propulsion Aluminum Leg Leg Aluminum Leg Flight Unit VTOL Module Utility Targeting Computer Device Improved Heat Sink Storage Huge Storage Unit Processor Targeting Computer Protection Core Shielding Weapon Light Assault Rifle Energy Gun Beam Rifle Ballistic Gun Light Assault Rifle Ballistic Cannon Light Cannon Launcher Heavy Missile Launcher Build | -11 -10 -9 -8 -7 -6 -6 -5 ------- Run | Jun Mat Mat Mat Fac Fac DSF Fac Slots Evolved 11 | . 1 2 2 2 2 . 2 Power 4 | . 1 . 1 . 1 . 1 Propulsion 2 | . . . 1 . 1 . . Utility 2 | . . 1 . 1 . . . Weapon 3 | . . 1 . 1 . . 1 Parts Attached 35 | . 2 7 7 5 2 10 2 Power 11 | . 1 3 3 2 1 1 . Engine 7 | . 1 2 2 1 . 1 . Core 4 | . . 1 1 1 1 . . Reactor . | . . . . . . . . Propulsion 11 | . . . 3 1 1 6 . Treads . | . . . . . . . . Leg 10 | . . . 3 1 1 5 . Wheel . | . . . . . . . . Hover . | . . . . . . . . Flight 1 | . . . . . . 1 . Utility 6 | . . 2 . 1 . 1 2 Device 1 | . . . . . . . 1 Storage 1 | . . 1 . . . . . Processor . | . . . . . . . . Hackware . | . . . . . . . . Protection 4 | . . 1 . 1 . 1 1 Artifact . | . . . . . . . . Weapon 7 | . 1 2 1 1 . 2 . Energy Gun 2 | . . 2 . . . . . Energy Cannon . | . . . . . . . . Ballistic Gun 1 | . . . . . . 1 . Ballistic Cannon 2 | . 1 . . 1 . . . Launcher 2 | . . . 1 . . 1 . Special Weapon . | . . . . . . . . Impact Weapon . | . . . . . . . . Slashing Weapon . | . . . . . . . . Piercing Weapon . | . . . . . . . . Special Melee Weapon . | . . . . . . . . Unidentified Prototypes . | . . . . . . . . Parts Lost 23 | . . . 2 . . 20 1 Power 5 | . . . 1 . . 3 1 Propulsion 9 | . . . 1 . . 8 . Utility 3 | . . . . . . 3 . Weapon 6 | . . . . . . 6 . Highest Loss Streak 20 | . . . 1 . . 20 1 To Critical Strikes . | . . . . . . . . Average Slot Usage (%) 82 | . 100 100 99 97 100 67 26 Engine 13 | . 25 12 21 14 12 7 . Core 5 | . . 7 2 7 12 8 4 Leg 17 | . 25 20 24 21 25 15 . Device 1 | . . . . . . . 5 Storage 7 | . 12 10 8 7 6 6 5 Processor 7 | . 12 10 8 7 6 6 5 Protection 8 | . . 10 8 14 12 7 5 Energy Gun 3 | . 6 10 3 . . . . Ballistic Gun 6 | . 12 10 8 7 6 4 . Ballistic Cannon 7 | . 5 10 8 11 12 6 . Launcher 2 | . . . 4 7 6 3 . Naked Turns . | . . . . . . . . Heaviest Build 127 | 18 22 101 112 122 127 127 88 Greatest Support 65 | 20 20 20 35 43 53 65 3 Greatest Overweight (x) 29 | . 1 5 4 3 2 28 29 Average Overweight (x) 3 | . . 2 3 2 2 3 29 Largest Inventory Capacity 25 | 10 10 25 25 25 25 25 25 Average Capacity 22 | 10 10 17 25 25 25 25 25 Most Carried 11 | 7 10 10 11 9 8 11 4 Average Carried 6 | 7 7 7 8 7 7 7 3 Final Capacity 25 | 10 10 25 25 25 25 25 25 Final Carried 9 | 7 9 8 7 9 7 5 3 Class Distribution -------------------- 46% | Hacker-Gunner 33% | Hacker-Mutant 20% | Hacker-Tank Dominant Class ---------------- Hacker-Mutant | -10/Materials Hacker-Gunner | -9/Materials Hacker-Gunner | -8/Materials Hacker-Tank | -7/Factory Hacker-Tank | -6/Factory Hacker-Tank | -6/DSF Hacker-Mutant | -5/Factory Resources | -11 -10 -9 -8 -7 -6 -6 -5 ----------- Run | Jun Mat Mat Mat Fac Fac DSF Fac Matter Collected 1216 | 200 25 140 417 166 . 143 125 Remotely . | . . . . . . . . Salvage Created 1223 | . 79 230 710 37 . 167 . Parts 90 | . 3 20 56 1 . 10 . Haulers Intercepted 2 | . . . 2 . . . . Recyclers Shooed . | . . . . . . . . Parts Field Recycled . | . . . . . . . . Retrieved Matter . | . . . . . . . . Parts Self-Destructed . | . . . . . . . . Prevented . | . . . . . . . . Kills | -11 -10 -9 -8 -7 -6 -6 -5 ------- Run | Jun Mat Mat Mat Fac Fac DSF Fac Combat Hostiles Destroyed 30 | . 2 4 18 1 . 5 . Guns 13 | . 2 2 6 . . 3 . Cannons 7 | . . 2 5 . . . . AOE 10 | . . . 7 1 . 2 . Classes Destroyed 11 | . 1 2 7 . . 1 . Worker 3 | . . . 3 . . . . Builder 2 | . . . 2 . . . . Hauler 2 | . . . 2 . . . . Recycler 1 | . . . 1 . . . . Operator 2 | . . . 2 . . . . Watcher 6 | . . 3 3 . . . . Swarmer 7 | . . . 6 . . 1 . Grunt 12 | . 2 2 5 1 . 2 . Sentry 9 | . . 2 6 . . 1 . Specialist 1 | . . . . . . 1 . Hunter 1 | . . . 1 . . . . Best Kill Streak 5 | . 2 2 5 1 . 5 . Combat Bots Only 5 | . 2 2 3 1 . 5 . Max Kills in Single Turn 3 | . 1 1 3 1 . 1 . Gunslinging . | . . . . . . . . Exploded 2 | . . . 2 1 . 1 . Melee . | . . . . . . . . Uniques/NPCs Destroyed . | . . . . . . . . Combat | -11 -10 -9 -8 -7 -6 -6 -5 -------- Run | Jun Mat Mat Mat Fac Fac DSF Fac Damage Taken 3185 | . 114 95 509 22 . 2200 245 Core 692 | . 6 22 50 . . 444 170 Absorbed by Shields . | . . . . . . . . Redirected to Shielding 57 | . . 4 9 . . 41 3 Core Remaining (%) 88 | 100 97 94 90 100 . 47 . Volleys Fired 79 | . 5 14 44 1 . 15 . Largest 4 | . 2 3 3 3 . 4 . Hottest 138 | . 60 111 111 94 . 138 . Shots Fired 213 | . 10 37 118 3 . 45 . Gun 112 | . 10 23 59 1 . 19 . Cannon 77 | . . 14 44 1 . 18 . Launcher 24 | . . . 15 1 . 8 . Special . | . . . . . . . . Kinetic 160 | . 5 28 88 2 . 37 . Thermal 24 | . . 9 15 . . . . Explosive 24 | . . . 15 1 . 8 . Electromagnetic 5 | . 5 . . . . . . Robot Hit Streak 23 | . 9 22 14 10 . 23 . Robot Miss Streak 2 | . 1 1 2 . . 1 . Penetration Max . | . . . . . . . . Secondary Targets . | . . . . . . . . Shots Hit Robots 166 | . 9 28 89 3 . 37 . Core Hits 89 | . 4 12 52 3 . 18 . Critical Kills . | . . . . . . . . Critical Parts Destroyed . | . . . . . . . . Critical Strikes 4 | . . 1 3 . . . . Burn 2 | . . . 2 . . . . Destroy 1 | . . 1 . . . . . Blast 1 | . . . 1 . . . . Melee Attacks . | . . . . . . . . Impact . | . . . . . . . . Slashing . | . . . . . . . . Piercing . | . . . . . . . . Sneak Attacks . | . . . . . . . . Combat Hostiles . | . . . . . . . . Follow-up Attacks . | . . . . . . . . Damage Inflicted 4039 | . 151 358 2366 132 . 1031 1 Guns 897 | . 93 197 430 10 . 167 . Cannons 1156 | . . 161 613 19 . 363 . Explosions 1980 | . 58 . 1323 98 . 501 . Melee . | . . . . . . . . Ramming 6 | . . . . 5 . . 1 Kinetic 1697 | . 40 241 857 29 . 530 . Thermal 361 | . 58 117 186 . . . . Explosive 1922 | . . . 1323 98 . 501 . Electromagnetic 53 | . 53 . . . . . . Impact . | . . . . . . . . Slashing . | . . . . . . . . Piercing . | . . . . . . . . Highest Corruption 1 | . . . . . . . 1 Average Corruption 1 | . . . . . . . 1 Corruption Purged . | . . . . . . . . Corruption Blocked . | . . . . . . . . Overload Shots . | . . . . . . . . Overflow Damage 13 | . . . 13 . . . . Projectiles . | . . . . . . . . Explosions 13 | . . . 13 . . . . Melee . | . . . . . . . . Knockbacks 4 | . . 1 3 . . . . Impact . | . . . . . . . . Kinetic 4 | . . 1 3 . . . . Secondary . | . . . . . . . . Self-Inflicted Damage 129 | . 32 . 56 . . 41 . Shots 5 | . 1 . 2 . . 2 . Rammed 1 | . . . . . . . 1 Targets Rammed 2 | . . . . 1 . . 1 Kicked 1 | . . . . 1 . . . Crushed . | . . . . . . . . Highest Temperature 540 | . 165 168 540 69 . 140 . Average Temperature 114 | . 95 57 136 39 . 72 . Received Heat Transfer 678 | . 75 48 234 18 . 303 . Effects 11 | . . . 11 . . . . Shutdowns 4 | . . . 4 . . . . Energy Bleed 1 | . . . 1 . . . . Interference 3 | . . . 3 . . . . Matter Decay 2 | . . . 2 . . . . Damage (minor) 1 | . . . 1 . . . . Siege Activations . | . . . . . . . . Robots Corrupted . | . . . . . . . . Combat Hostiles . | . . . . . . . . Parts Fried . | . . . . . . . . Impact Corruptions . | . . . . . . . . Robots Melted . | . . . . . . . . Combat Hostiles . | . . . . . . . . Parts Melted . | . . . . . . . . Heat Transferred 1014 | . 100 285 629 . . . . Parts Sabotaged . | . . . . . . . . Parts Stolen . | . . . . . . . . Parts Stripped . | . . . . . . . . Power Chain Reactions 1 | . 1 . . . . . . Missiles Intercepted . | . . . . . . . . Alert | -11 -10 -9 -8 -7 -6 -6 -5 ------- Run | Jun Mat Mat Mat Fac Fac DSF Fac Peak Influence 580 | . 76 154 580 122 . 105 9 Initial 93 | . . 22 8 93 . . 9 Average 97 | . 42 77 220 86 . 39 5 Maximum Alert Level 2 | . . . 2 . . . . Low Security (%) 85 | 100 100 100 48 100 100 100 100 Level 1 12 | . . . 43 . . . . Level 2 2 | . . . 8 . . . . Level 3 . | . . . . . . . . Level 4 . | . . . . . . . . Level 5 . | . . . . . . . . High Security . | . . . . . . . . Max Security . | . . . . . . . . Squads Dispatched 6 | . . . 1 2 . 2 1 Investigation . | . . . . . . . . Extermination 2 | . . . . 1 . . 1 Reinforcement 4 | . . . 1 1 . 2 . Assault . | . . . . . . . . Garrison . | . . . . . . . . Intercept . | . . . . . . . . Searches Triggered . | . . . . . . . . Construction Impeded . | . . . . . . . . Haulers Reinforced 1 | . . . . 1 . . . Active Scanning Responses . | . . . . . . . . Cargo Convoy Interrupts . | . . . . . . . . Stealth | -11 -10 -9 -8 -7 -6 -6 -5 --------- Run | Jun Mat Mat Mat Fac Fac DSF Fac Distress Signals 3 | . . 1 2 . . . . Communications Jammed . | . . . . . . . . Distress Signals . | . . . . . . . . Times Spotted 46 | . 2 7 26 1 . 8 2 Peak Tracking Total 6 | . 2 2 4 1 . 6 2 Tactical Retreats 1 | . . . 1 . . . . Traps | -11 -10 -9 -8 -7 -6 -6 -5 ------- Run | Jun Mat Mat Mat Fac Fac DSF Fac Traps Triggered . | . . . . . . . . Indirectly . | . . . . . . . . Trap Hack Attempts . | . . . . . . . . Triggered . | . . . . . . . . Disarmed . | . . . . . . . . Reprogrammed . | . . . . . . . . Reused . | . . . . . . . . Traps Extracted . | . . . . . . . . Installed . | . . . . . . . . Triggered . | . . . . . . . . Machines | -11 -10 -9 -8 -7 -6 -6 -5 ---------- Run | Jun Mat Mat Mat Fac Fac DSF Fac Machines Disabled 9 | . 1 . 7 . . 1 . Max in Single Turn 2 | . 1 . 2 . . 1 . Machines Repaired . | . . . . . . . . Machines Sabotaged . | . . . . . . . . Overloaded Fab Kills . | . . . . . . . . Hacking | -11 -10 -9 -8 -7 -6 -6 -5 --------- Run | Jun Mat Mat Mat Fac Fac DSF Fac Machines Accessed 5 | . 2 1 1 . 1 . . Terminals 4 | . 2 1 . . 1 . . Fabricators . | . . . . . . . . Repair Stations . | . . . . . . . . Recycling Units 1 | . . . 1 . . . . Scanalyzers . | . . . . . . . . Garrison Access . | . . . . . . . . Total Hacks 11 | . 5 4 1 . 1 . . Successful 10 | . 5 3 1 . 1 . . Failed 1 | . . 1 . . . . . Catastrophic . | . . . . . . . . Database Lockouts . | . . . . . . . . Manual . | . . . . . . . . Terminals 10 | . 5 4 . . 1 . . Fabricators . | . . . . . . . . Repair Stations . | . . . . . . . . Recycling Units 1 | . . . 1 . . . . Scanalyzers . | . . . . . . . . Garrison Access . | . . . . . . . . Terminal Hacks 9 | . 5 3 . . 1 . . Record 4 | . 1 3 . . . . . Prototype ID Bank 1 | . 1 . . . . . . Open DSF 1 | . . . . . 1 . . Emergency Access Points 1 | . 1 . . . . . . Alert Level 1 | . 1 . . . . . . Dispatch Records 1 | . 1 . . . . . . Fabricator Hacks . | . . . . . . . . Repair Station Hacks . | . . . . . . . . Recycling Unit Hacks 1 | . . . 1 . . . . Recycle Component 1 | . . . 1 . . . . Scanalyzer . | . . . . . . . . Garrison Access Hacks . | . . . . . . . . Unauthorized Hacks . | . . . . . . . . Terminals . | . . . . . . . . Fabricators . | . . . . . . . . Repair Stations . | . . . . . . . . Recycling Units . | . . . . . . . . Scanalyzers . | . . . . . . . . Garrison Access . | . . . . . . . . Data Cores Recovered . | . . . . . . . . Used . | . . . . . . . . Hacking Detections 2 | . . 1 1 . . . . Full Trace Events . | . . . . . . . . Feedback Events . | . . . . . . . . Feedback Blocked . | . . . . . . . . Robot Schematics Acquired . | . . . . . . . . Robots Built . | . . . . . . . . Authchips . | . . . . . . . . Time . | . . . . . . . . Total Robot Build Rating . | . . . . . . . . Part Schematics Acquired . | . . . . . . . . Parts Built . | . . . . . . . . Authchips . | . . . . . . . . Time . | . . . . . . . . Total Part Build Rating . | . . . . . . . . Parts Repaired . | . . . . . . . . Time . | . . . . . . . . Parts Recycled 1 | . . . 1 . . . . Recycled Matter . | . . . . . . . . Retrieved Matter . | . . . . . . . . Retrieved Components . | . . . . . . . . Parts Scanalyzed . | . . . . . . . . Part Schematics Acquired . | . . . . . . . . Parts Damaged . | . . . . . . . . Bothacking | -11 -10 -9 -8 -7 -6 -6 -5 ------------ Run | Jun Mat Mat Mat Fac Fac DSF Fac Used RIF Installer . | . . . . . . . . Robots Hacked . | . . . . . . . . Non-combat . | . . . . . . . . Combat . | . . . . . . . . Robot Hacks Applied . | . . . . . . . . Relay Couplers Released . | . . . . . . . . Fabnet Peak Effective % . | . . . . . . . . Robots Rewired . | . . . . . . . . Allies Hacked . | . . . . . . . . Hacks Repelled . | . . . . . . . . Allies | -11 -10 -9 -8 -7 -6 -6 -5 -------- Run | Jun Mat Mat Mat Fac Fac DSF Fac Total Allies . | . . . . . . . . Largest Group . | . . . . . . . . Highest-Rated Group . | . . . . . . . . Highest-Rated Ally . | . . . . . . . . Total Orders . | . . . . . . . . Ally Attacks . | . . . . . . . . Total Damage . | . . . . . . . . Kills . | . . . . . . . . Allies Corrupted . | . . . . . . . . Allies Melted . | . . . . . . . . Intel | -11 -10 -9 -8 -7 -6 -6 -5 ------- Run | Jun Mat Mat Mat Fac Fac DSF Fac Robot Analysis Total . | . . . . . . . . Derelict Logs Recovered . | . . . . . . . . Drone Launches . | . . . . . . . . Drone Recoveries . | . . . . . . . . Exploration | -11 -10 -9 -8 -7 -6 -6 -5 ------------- Run | Jun Mat Mat Mat Fac Fac DSF Fac Turns Passed 3076 | 45 241 590 843 534 15 192 616 Spaces Moved 828 | 38 115 191 211 187 6 40 40 Core 41 | . . . . . . 1 40 Treads . | . . . . . . . . Legs 786 | 38 115 191 211 187 6 38 . Wheels . | . . . . . . . . Hover . | . . . . . . . . Flight 1 | . . . . . . 1 . Fastest Speed 120 | 120 120 190 330 260 260 190 1500 Average Speed 335 | 120 189 280 331 277 260 366 1500 Slowest Speed 1735 | 120 190 470 400 330 260 1735 1500 Overloaded Moves . | . . . . . . . . Propulsion Burnouts . | . . . . . . . . Robots Hopped . | . . . . . . . . Cave-ins Triggered . | . . . . . . . . Exploration Rate (%) 19 | 3 24 17 36 6 . 51 1 Regions Visited 7 Branch Regions . Pre-discovered Areas . | . . . . . . . . Known Exits Taken 6 | 1 1 1 1 1 1 . . Unknown Exits Taken . | . . . . . . . . Scrap Searched . | . . . . . . . . Spaces Dug . | . . . . . . . . Terrain Destroyed 302 | . 3 . 207 9 . 83 . Melee . | . . . . . . . . Projectile . | . . . . . . . . AOE 302 | . 3 . 207 9 . 83 . Terrain Rammed . | . . . . . . . . Walls Destroyed . | . . . . . . . . Machines Disabled . | . . . . . . . . Actions | -11 -10 -9 -8 -7 -6 -6 -5 --------- Run | Jun Mat Mat Mat Fac Fac DSF Fac Total 970 | 37 132 222 267 197 7 65 43 Wait . | . . . . . . . . Move 821 | 37 114 190 210 186 5 39 40 Hop . | . . . . . . . . Pick Up 20 | . 7 5 4 3 . 1 . Fast Attach 3 | . . . . 1 . 2 . Attach 19 | . 2 2 4 1 2 6 2 Detach . | . . . . . . . . Swap 13 | . . 5 3 3 . 2 . Drop 13 | . 4 6 2 1 . . . Fire 79 | . 5 14 44 1 . 15 . Melee . | . . . . . . . . Ram 1 | . . . . . . . 1 Kick 1 | . . . . 1 . . . Crush . | . . . . . . . . Escape Stasis . | . . . . . . . . Rewire . | . . . . . . . . Trap . | . . . . . . . . Miscellaneous . | . . . . . . . . Route ------- -11/Junkyard -10/Materials -9/Materials -8/Materials -7/Factory -6/Factory -6/DSF -5/Factory History --------- Turn | Location | Event 1 | -11/Junkyard | Identified exit to Materials 1 | -11/Junkyard | Discovered exit to Materials (range 3) 46 | -11/Junkyard | Entered Materials 46 | -10/Materials | Evolved 1 slot: Power x1 268 | -10/Materials | Identified exit to Materials 268 | -10/Materials | Discovered exit to Materials (range 3) 287 | -10/Materials | Entered another Materials area 287 | -9/Materials | Evolved 2 slots: Utility x1, Weapon x1 612 | -9/Materials | Build established: Hacker-Gunner 816 | -9/Materials | Identified exit to Materials 816 | -9/Materials | Discovered exit to Materials (range 13) 877 | -9/Materials | Entered another Materials area 877 | -8/Materials | Evolved 2 slots: Power x1, Propulsion x1 1653 | -8/Materials | Identified exit to Factory 1653 | -8/Materials | Discovered exit to Factory (range 3) 1720 | -8/Materials | Entered Factory 1720 | -7/Factory | Evolved 2 slots: Utility x1, Weapon x1 2024 | -7/Factory | Build established: Hacker-Tank 2241 | -7/Factory | Identified exit to Factory 2241 | -7/Factory | Discovered exit to Factory (range 5) 2254 | -7/Factory | Entered another Factory area 2254 | -6/Factory | Evolved 2 slots: Power x1, Propulsion x1 2269 | -6/Factory | Identified exit to DSF 2269 | -6/Factory | Entered DSF 2326 | -6/DSF | Additional patrols routed to DSF 2342 | -6/DSF | Identified exit to Factory 2342 | -6/DSF | Discovered exit to Factory (range 16) 2458 | -6/DSF | Core integrity fell below 50% 2461 | -6/DSF | Entered Factory 2461 | -5/Factory | Evolved 2 slots: Power x1, Weapon x1 2488 | -5/Factory | Lost 20 parts (3p8n3u6w) 2692 | -5/Factory | Build established: Hacker-Mutant 3077 | -5/Factory | Self-destructed Last Messages --------------- 02441_ The unstable cave ceiling collapses. 02442_ Acquired VTOL Module. 02444_ Acquired 20 matter. 02447_ Aluminum Leg destroyed. 02452_ VTOL Module destroyed. 02452_ Critical hit (Blast). 02455_ The unstable cave ceiling collapses. 02457_ Carbon-fiber Leg destroyed. PARAMETERS=POWER+1,WEAPON+1 LOCATION=FACTORY GOAL=ESCAPE 02553_ Acquired 125 matter. 02865_ ALERT: Cargo convoy en route, clear transfer corridor. 02937_ K-01 Serf collects debris. 02949_ K-01 Serf cleans the Fusion Modulator. 02961_ ALERT: Rogue bot located, Programmers report to Factory Zone 8X. 02961_ K-01 Serf cleans the Fusion Modulator. 02965_ K-01 Serf collects debris. 03062_ Mic. Nuclear Core destroyed. 03063_ Slammed into P-70 Sage. Map ----- +----------------------------------------------------+ | ?????????????????????????????????????????????????? | | ?????????????????????????????????????????????????? | | ?????????????????????????????????????????????????? | | ?????????????????????????????????????????????????? | | ?????????????????????????????????????????????????? | | ?????????????????????????????????????????????????? | | ?????????????????????????????????????????????????? | | ?????????????????????????????????????????????????? | | ?????????????????????????????????????????????????? | | ?????????????????????????????????????????????????? | | ?????????????????????????#???#???????????????????? | | ??????????????????????? ??? ??????????????????? | | ?????????????????????? ?? ??????????????????? | | ?????????????????????= """ ""?? ??????????????? | | ????????????????????** """ """ ???????????????? | | ????????????????????** """ """ ???????????????? | | ????????????????????? ????????????????? | | ?????????????????????? ?????????????????? | | ??????????????????????? ##############????? | | ???????????????????????? # #????? | | ?????????################# # ?????? | | ?????????# # # """ ""????????? | | ?????????# """ """ """ # # """ """???????? | | ?????????# """ """ """ # # """ """"??????? | | ?????????# """ """ """ # # """"??????? | | ?????????# p@ + """"??????? | | ?????????# """ """ """ # # """???????? | | ?????????# """ """ """ # # """???????? | | ?????????# """ """ """ # # ?????? | | ?????????# ####### #????? | | ?????????# #?????# #????? | | ?????????#################?????#+############????? | | ???????????????????????????????# #???????????????? | | ???????????????????????????????? ????????????????? | | ???????????????????????????????? ????????????????? | | ???????????????????????????????? ????????????????? | | ???????????????????????????????? ????????????????? | | ???????????????????????????????? ????????????????? | | ???????????????????????????????? ????????????????? | | ???????????????????????????????? ????????????????? | | ?????????????????????????????????????????????????? | | ?????????????????????????????????????????????????? | | ?????????????????????????????????????????????????? | | ?????????????????????????????????????????????????? | | ?????????????????????????????????????????????????? | | ?????????????????????????????????????????????????? | | ?????????????????????????????????????????????????? | | ?????????????????????????????????????????????????? | | ?????????????????????????????????????????????????? | | ?????????????????????????????????????????????????? | +----------------------------------------------------+ Best States ------------- Heat Dissipation 54 Energy Generation 38 Energy Capacity 505 Matter Stores 300 Matter Capacity 300 Sight Range 16 Terrain Scan Density 10 Armor Coverage 225 Resistance: KI 35 Resistance: TH 35 Resistance: EX 35 Resistance: EM 35 Resistance: I 35 Resistance: S 35 Resistance: P 35 Core Shielding 20 Power Shielding 33 Evasion (%) 55 Targeting Accuracy 5 Offensive Hacking 20 Item Schematics ----------------- None Robot Schematics ------------------ None Fabricated ------------ Nothing Alien Tech Used ----------------- None Achievements -------------- None Challenges ------------ None Game ------ Seed NeutronMicrowarpRefractor Manual? 0 Play Time 00:25:13 Cumulative 9.1 hours Start 2024.01.12 @ 00:21:00 End 2024.01.12 @ 00:46:14 Sessions 1 Manual Loads 0 Difficulty Explorer Special Mode None Game No. 16 Rogue 8 Adventurer 0 Explorer 8 Win Type - Total 0 Types 0/0/0/0/0/0/0/0/0 Lore% 11 Gallery% 14 Achievement% 14 Wizard Run 0 Options --------- ASCII 0 Keyboard 0 Movement Mouse Keybinds 0 Fullscreen 1 Font 36/Smallcaps Map View 76x50 Tactical HUD 1 Map Filters NONE Filters NONE Steam 1 RUN: db1826f6-f46b-42c3-8235-a89bcc362c34